{"text_format":"1","workbook":"xlsx","n_sheets":4,"sheets":["Титульный лист","Компания 1","компания 2 (2)","компания 2"],"not_rendered":{"charts":0,"images":0,"macros":1,"external_links":0,"defined_names":0,"comments":0,"pivot_tables":0},"unopened":[],"bounds":{"document_bytes":16777216,"sheet_cells":100000,"rows_first":2000,"rows_last":500,"rows_between":2000,"halvings":0,"cell_chars":16384,"cell_head_chars":4096},"cells_cut":0,"cells_raw":0,"read":"whole","date_system":"1900"}

{"sheet":"Титульный лист","index":0,"n_rows":22,"n_cols":21,"rows_kept":22,"cut":false,"hidden":false,"merged":[[20,0,20,14],[21,0,21,14],[15,0,15,14],[16,0,16,14],[17,0,17,14],[18,0,18,14],[19,0,19,14],[10,0,10,14],[11,0,11,14],[12,0,12,14],[13,0,13,14],[14,0,14,14],[5,0,5,14],[6,0,6,14],[7,0,7,14],[8,0,8,14],[9,0,9,14],[0,0,0,14],[1,0,1,14],[2,0,2,14],[3,0,3,14],[4,0,4,14]]}
["Организации",null,null,null,null,null,null,null,null,null,null,null,null,null,null,null,null,null,null,null,"Группы"]
["группа 1",null,null,null,null,null,null,null,null,null,null,null,null,null,null,null,null,null,null,null,{"$f":"IFERROR(gr(ROW(U1)),\"\")","v":"группа 1"}]
[{"$f":"IFERROR(ko($A$2,ROW(A1)),\"\")","v":"Компания 1"},null,null,null,null,null,null,null,null,null,null,null,null,null,null,null,null,null,null,null,{"$f":"IFERROR(gr(ROW(U2)),\"\")","v":"группа 2"}]
[{"$f":"IFERROR(ko($A$2,ROW(A2)),\"\")","v":""},null,null,null,null,null,null,null,null,null,null,null,null,null,null,null,null,null,null,null,""]
[{"$f":"IFERROR(ko($A$2,ROW(A3)),\"\")","v":""},null,null,null,null,null,null,null,null,null,null,null,null,null,null,null,null,null,null,null,""]
[{"$f":"IFERROR(ko($A$2,ROW(A4)),\"\")","v":""},null,null,null,null,null,null,null,null,null,null,null,null,null,null,null,null,null,null,null,""]
[{"$f":"IFERROR(ko($A$2,ROW(A5)),\"\")","v":""},null,null,null,null,null,null,null,null,null,null,null,null,null,null,null,null,null,null,null,""]
[{"$f":"IFERROR(ko($A$2,ROW(A6)),\"\")","v":""},null,null,null,null,null,null,null,null,null,null,null,null,null,null,null,null,null,null,null,""]
[{"$f":"IFERROR(ko($A$2,ROW(A7)),\"\")","v":""},null,null,null,null,null,null,null,null,null,null,null,null,null,null,null,null,null,null,null,""]
[{"$f":"IFERROR(ko($A$2,ROW(A8)),\"\")","v":""},null,null,null,null,null,null,null,null,null,null,null,null,null,null,null,null,null,null,null,""]
[{"$f":"IFERROR(ko($A$2,ROW(A9)),\"\")","v":""},null,null,null,null,null,null,null,null,null,null,null,null,null,null,null,null,null,null,null,""]
[{"$f":"IFERROR(ko($A$2,ROW(A10)),\"\")","v":""},null,null,null,null,null,null,null,null,null,null,null,null,null,null,null,null,null,null,null,""]
[{"$f":"IFERROR(ko($A$2,ROW(A11)),\"\")","v":""},null,null,null,null,null,null,null,null,null,null,null,null,null,null,null,null,null,null,null,""]
[{"$f":"IFERROR(ko($A$2,ROW(A12)),\"\")","v":""},null,null,null,null,null,null,null,null,null,null,null,null,null,null,null,null,null,null,null,""]
[{"$f":"IFERROR(ko($A$2,ROW(A13)),\"\")","v":""},null,null,null,null,null,null,null,null,null,null,null,null,null,null,null,null,null,null,null,""]
[{"$f":"IFERROR(ko($A$2,ROW(A14)),\"\")","v":""},null,null,null,null,null,null,null,null,null,null,null,null,null,null,null,null,null,null,null,""]
[{"$f":"IFERROR(ko($A$2,ROW(A15)),\"\")","v":""},null,null,null,null,null,null,null,null,null,null,null,null,null,null,null,null,null,null,null,""]
[{"$f":"IFERROR(ko($A$2,ROW(A16)),\"\")","v":""},null,null,null,null,null,null,null,null,null,null,null,null,null,null,null,null,null,null,null,""]
[{"$f":"IFERROR(ko($A$2,ROW(A17)),\"\")","v":""},null,null,null,null,null,null,null,null,null,null,null,null,null,null,null,null,null,null,null,""]
[{"$f":"IFERROR(ko($A$2,ROW(A18)),\"\")","v":""},null,null,null,null,null,null,null,null,null,null,null,null,null,null,null,null,null,null,null,""]
[{"$f":"IFERROR(ko($A$2,ROW(A19)),\"\")","v":""},null,null,null,null,null,null,null,null,null,null,null,null,null,null,null,null,null,null,null,""]
[{"$f":"IFERROR(ko($A$2,ROW(A20)),\"\")","v":""},null,null,null,null,null,null,null,null,null,null,null,null,null,null,null,null,null,null,null,""]

{"sheet":"Компания 1","index":1,"n_rows":1,"n_cols":2,"rows_kept":1,"cut":false,"hidden":false,"merged":[]}
["Компания 1","группа 1"]

{"sheet":"компания 2 (2)","index":2,"n_rows":1,"n_cols":2,"rows_kept":1,"cut":false,"hidden":false,"merged":[]}
["компания 54","группа 2"]

{"sheet":"компания 2","index":3,"n_rows":1,"n_cols":2,"rows_kept":1,"cut":false,"hidden":false,"merged":[]}
["компания 2","группа 2"]